fUST/lending_fUST_20240121
["ID","MTS","AMOUNT","RATE_DAILY","PERIOD"]
[312350177,1705812643212,-721.11,0.00030136,2]
[312350178,1705812643221,-500.0,0.00030136,2]
[312350179,1705812643230,-500.0,0.00030136,2]
[312350180,1705812643239,-1347.66,0.00030136,2]
[312350181,1705812643248,-501.87748932,0.00030136,2]
[312350182,1705812643257,-197.51931801,0.00030136,2]
[312350183,1705812643266,-500.0,0.00030136,2]
[312350184,1705812643275,-680.21,0.00030408,2]
[312350185,1705812643284,-160.47776168,0.00030409,10]
[312350186,1705812643293,-488.05515625,0.00030409,2]
[312350187,1705812643303,-375.50920767,0.00030409,2]
[312350188,1705812643312,-500.0,0.00030409,2]
[312350189,1705812643321,-439.32813399,0.00030409,2]
[312350190,1705812643331,-500.0,0.00030409,2]
[312350191,1705812643340,-500.0,0.00030409,2]
[312350192,1705812643350,-500.0,0.00030409,2]
[312350193,1705812643360,-598.48482929,0.00030409,2]
[312350194,1705812643370,-343.96138669,0.00030409,2]
[312350195,1705812643380,-500.0,0.00030409,2]
[312350196,1705812643390,-500.0,0.00030409,2]
[312350197,1705812643400,-500.0,0.00030409,2]
[312350198,1705812643410,-500.0,0.00030409,2]
[312350199,1705812643420,-500.0,0.00030409,2]
[312350200,1705812643431,-325.74090721,0.00030409,2]
[312350201,1705812643441,-500.0,0.00030409,2]
[312350202,1705812643451,-500.0,0.00030409,2]
[312350203,1705812643461,-500.0,0.00030409,2]
[312350204,1705812643470,-500.0,0.00030409,2]
[312350205,1705812643480,-500.0,0.00030409,2]
[312350206,1705812643490,-500.0,0.00030409,2]
[312350207,1705812643499,-500.0,0.00030409,2]
[312350208,1705812643508,-500.0,0.00030409,2]
[312350209,1705812643518,-680.21,0.00030409,2]
[312350210,1705812643528,-680.21,0.00030409,2]
[312350211,1705812643541,-680.21,0.00030409,2]
[312350212,1705812643550,-680.21,0.00030409,2]
[312350213,1705812643560,-680.21,0.00030409,2]
[312350214,1705812643570,-680.21,0.00030409,2]
[312350215,1705812643580,-680.21,0.00030409,2]
[312350216,1705812643590,-680.21,0.00030409,2]
[312350217,1705812643600,-680.21,0.00030409,2]
[312350218,1705812643609,-680.21,0.00030409,2]
[312350219,1705812643621,-680.33,0.00030409,2]
[312350220,1705812643632,-351.230085,0.00030409,2]
[312350221,1705812643641,-351.230085,0.00030409,2]
[312350222,1705812643651,-503.496,0.00030409,2]
[312350223,1705812643661,-535.90514893,0.00030409,4]
[312350224,1705812643671,-381.25968954,0.00030409,4]
[312350225,1705812643681,-500.0,0.00030409,4]
[312350226,1705812643690,-500.0,0.00030409,4]
[312350227,1705812643700,-500.0,0.00030409,4]
[312350228,1705812643710,-500.0,0.00030409,4]
[312350229,1705812643807,-430.69114226,0.00030409,4]
[312350230,1705812643826,-181.01149076,0.00030409,4]
[312350231,1705812643836,-500.0,0.00030409,4]
[312350232,1705812643845,-500.0,0.00030409,4]
[312350233,1705812643854,-376.34138329,0.00030409,4]
[312350234,1705812643866,-500.0,0.00030409,4]
[312350235,1705812643875,-500.0,0.00030409,4]
[312350236,1705812643886,-500.0,0.00030409,4]
[312350237,1705812643895,-580.06278249,0.00030409,4]
[312350238,1705812643905,-500.0,0.00030409,4]
[312350239,1705812643917,-381.25968953,0.00030409,4]
[312350240,1705812643926,-472.80957298,0.00030409,2]
[312350241,1705812643935,-500.0,0.00030409,4]
[312350242,1705812643944,-500.0,0.00030409,4]
[312350243,1705812643955,-500.0,0.00030409,4]
[312350244,1705812643965,-500.0,0.00030409,4]
[312350245,1705812643975,-500.17813901,0.00030409,4]
[312350246,1705812643986,-584.22758886,0.00030409,4]
[312350247,1705812643996,-620.46076151,0.00030409,4]
[312350248,1705812644005,-500.0,0.00030409,4]
[312350249,1705812644016,-220.04185499,0.00030409,4]
[312350250,1705812644028,-454.00766051,0.00030409,4]
[312350251,1705812644041,-500.0,0.0003041,2]
[312350252,1705812644052,-500.0,0.0003041,2]
[312350253,1705812644062,-500.0,0.0003041,2]
[312350254,1705812644072,-500.0,0.0003041,2]
[312350255,1705812644083,-306.67836623,0.0003041,4]
[312350256,1705812644093,-2406.82921383,0.0003041,2]
[312350257,1705812644103,-333.92093971,0.0003041,2]
[312350258,1705812644113,-500.0,0.0003041,2]
[312350259,1705812644123,-500.0,0.0003041,2]
[312350260,1705812644134,-500.0,0.0003041,2]
[312350261,1705812644143,-500.0,0.0003041,2]
[312350262,1705812644154,-500.0,0.0003041,2]
[312350263,1705812644164,-500.0,0.0003041,2]
[312350264,1705812644173,-500.0,0.0003041,2]
[312350265,1705812644182,-600.0726011,0.0003041,2]
[312350266,1705812644192,-500.0,0.0003041,2]
[312350267,1705812644202,-500.0,0.0003041,2]
[312350268,1705812644211,-500.0,0.0003041,2]
[312350269,1705812644220,-150.0,0.0003041,2]
[312350270,1705812644230,-500.0,0.0003041,2]
[312350271,1705812644239,-673.27,0.0003041,2]
[312350272,1705812644250,-500.0,0.0003041,2]
[312350273,1705812644260,-504.36863832,0.0003041,2]
[312350274,1705812644270,-386.07321651,0.0003041,2]
[312350275,1705812644279,-1000.0,0.0003041,2]
[312350276,1705812644289,-500.0,0.0003041,2]
[312350277,1705812644298,-709.92,0.0003041,2]
[312350278,1705812644307,-533.7492348,0.0003041,2]
[312350279,1705812644316,-500.0,0.0003041,2]
[312350280,1705812644326,-500.44787412,0.0003041,2]
[312350281,1705812644335,-500.0,0.0003041,2]
[312350282,1705812644344,-569.44,0.0003041,2]
[312350283,1705812644353,-504.73932629,0.0003041,2]
[312350284,1705812644362,-602.88813373,0.0003041,2]
[312350285,1705812644372,-500.0,0.0003041,2]
[312350286,1705812644381,-500.0,0.0003041,2]
[312350287,1705812644390,-524.23336477,0.0003041,2]
[312350288,1705812644399,-500.0,0.0003041,7]
[312350289,1705812644409,-500.0,0.0003041,2]
[312350290,1705812644418,-500.0,0.0003041,2]
[312350291,1705812644427,-500.0,0.0003041,2]
[312350292,1705812644436,-500.0,0.0003041,2]
[312350293,1705812644446,-724.54,0.0003041,2]
[312350294,1705812644455,-432.53006519,0.0003041,2]
[312350295,1705812644464,-500.0,0.0003041,2]
[312350296,1705812644473,-500.0,0.0003041,2]
[312350297,1705812644483,-500.67327794,0.0003041,2]
[312350298,1705812644492,-500.0,0.0003041,2]
[312350299,1705812644502,-500.0,0.0003041,2]
[312350300,1705812644511,-500.0,0.0003041,2]
[312350301,1705812644520,-500.0,0.0003041,2]
[312350302,1705812644529,-271.28757262,0.0003041,2]
[312350303,1705812644542,-500.0,0.0003041,2]
[312350304,1705812644551,-221.60056194,0.0003041,2]
[312350305,1705812644560,-500.0,0.0003041,2]
[312350306,1705812644569,-1024.7,0.0003041,2]
[312350307,1705812644579,-220.4614793,0.0003041,2]
[312350308,1705812644588,-500.59354776,0.0003041,2]
[312350309,1705812644597,-500.0,0.0003041,2]
[312350310,1705812644606,-500.0,0.0003041,2]
[312350311,1705812644616,-695.76,0.0003041,2]
[312350312,1705812644625,-423.25178745,0.0003041,2]
[312350313,1705812644634,-500.0,0.0003041,2]
[312350314,1705812644644,-503.03597307,0.0003041,2]
[312350315,1705812644653,-504.58949916,0.0003041,2]
[312350316,1705812644662,-500.0,0.0003041,2]
[312350317,1705812644671,-512.38150394,0.0003041,2]
[312350318,1705812644681,-500.0,0.0003041,2]
[312350319,1705812644690,-1274.55,0.0003041,2]
[312350320,1705812644700,-500.0,0.0003041,2]
[312350321,1705812644709,-500.0,0.0003041,2]
[312350322,1705812644718,-500.0,0.0003041,2]
[312350323,1705812644728,-500.0,0.0003041,2]
[312350324,1705812644737,-198.27753364,0.0003041,2]
[312350325,1705812644746,-575.98690108,0.0003041,2]
[312350326,1705812644755,-500.0,0.0003041,2]
[312350327,1705812644765,-503.30193575,0.0003041,2]
[312350328,1705812644774,-10018.48398771,0.0003041,10]
[312350329,1705812644783,-500.0,0.0003041,2]
[312350330,1705812644792,-500.0,0.0003041,2]
[312350331,1705812644801,-500.0,0.0003041,2]
[312350332,1705812644810,-500.0,0.0003041,2]
[312350333,1705812644820,-500.0,0.0003041,2]
[312350334,1705812644829,-163.9763583,0.0003041,2]
[312350335,1705812644838,-500.0,0.0003041,2]
[312350336,1705812644847,-345.13162571,0.0003041,2]
[312350337,1705812644856,-500.0,0.0003041,2]
[312350338,1705812644865,-500.72302564,0.0003041,2]
[312350339,1705812644874,-500.0,0.0003041,2]
[312350340,1705812644883,-1142.29,0.0003041,2]
[312350341,1705812644892,-500.0,0.0003041,2]
[312350342,1705812644901,-539.51631293,0.0003041,2]
[312350343,1705812644912,-379.75033587,0.0003041,2]
[312350344,1705812644921,-500.0,0.0003041,2]
[312350345,1705812644932,-500.0,0.0003041,2]
[312350346,1705812644941,-500.0,0.0003041,2]
[312350347,1705812644950,-500.0,0.0003041,2]
[312350348,1705812644960,-500.0,0.0003041,2]
[312350349,1705812644969,-500.0,0.0003041,2]
[312350350,1705812644979,-500.0,0.0003041,2]
[312350351,1705812644989,-1018.9,0.0003041,2]
[312350352,1705812644999,-506.57330405,0.0003041,2]
[312350353,1705812645008,-500.0,0.0003041,2]
[312350354,1705812645017,-694.12,0.0003041,2]
[312350355,1705812645027,-1000.0,0.0003041,2]
[312350356,1705812645036,-500.0,0.0003041,2]
[312350357,1705812645046,-500.0,0.0003041,2]
[312350358,1705812645055,-500.0,0.0003041,2]
[312350359,1705812645064,-298.05207015,0.0003041,2]
[312350360,1705812645074,-500.0,0.0003041,2]
[312350361,1705812645083,-500.0,0.0003041,2]
[312350362,1705812645092,-2272.13,0.0003041,2]
[312350363,1705812645101,-500.0,0.0003041,2]
[312350364,1705812645109,-500.0,0.0003041,2]
[312350365,1705812645118,-500.0,0.0003041,2]
[312350366,1705812645128,-425.81095081,0.0003041,2]
[312350367,1705812645137,-500.0,0.0003041,2]
[312350368,1705812645146,-500.0,0.0003041,2]
[312350369,1705812645155,-500.0,0.0003041,2]
[312350370,1705812645164,-470.11053392,0.0003041,2]
[312350371,1705812645174,-500.0,0.0003041,2]
[312350372,1705812645183,-500.0,0.0003041,2]
[312350373,1705812645192,-1417.81,0.0003041,2]
[312350374,1705812645201,-500.0,0.0003041,2]
[312350375,1705812645210,-500.0,0.0003041,2]
[312350376,1705812645219,-500.0,0.0003041,2]
[312350377,1705812645228,-1048.15,0.0003041,2]
[312350378,1705812645237,-500.0,0.0003041,2]
[312350379,1705812645246,-501.78466659,0.0003041,2]
[312350380,1705812645255,-501.52704151,0.0003041,2]
[312350381,1705812645264,-521.15,0.0003041,2]
[312350382,1705812645273,-500.0,0.0003041,2]
[312350383,1705812645282,-660.09,0.0003041,2]
[312350384,1705812645292,-501.32256975,0.0003041,2]
[312350385,1705812645302,-500.0,0.0003041,2]
[312350386,1705812645312,-500.0,0.0003041,2]
[312350387,1705812645322,-1113.96,0.0003041,2]
[312350388,1705812645333,-500.0,0.0003041,2]
[312350390,1705812645341,-500.0,0.0003041,2]
[312350391,1705812645352,-500.0,0.0003041,2]
[312350393,1705812645362,-500.0,0.0003041,2]
[312350395,1705812645372,-500.0,0.0003041,2]
[312350396,1705812645382,-500.0,0.0003041,2]
[312350398,1705812645391,-500.0,0.0003041,2]
[312350399,1705812645400,-500.0,0.0003041,2]
[312350401,1705812645410,-894.92,0.0003041,2]
[312350403,1705812645420,-500.0,0.0003041,2]
[312350405,1705812645429,-500.0,0.0003041,2]
[312350407,1705812645438,-500.0,0.0003041,2]
[312350409,1705812645447,-800.21,0.0003041,2]
[312350411,1705812645456,-501.77316946,0.0003041,2]
[312350412,1705812645465,-1654.95,0.0003041,2]
[312350414,1705812645474,-500.0,0.0003041,2]
[312350416,1705812645483,-284.66218362,0.0003041,2]
[312350418,1705812645492,-500.33,0.0003041,2]
[312350419,1705812645501,-500.0,0.0003041,2]
[312350420,1705812645511,-500.0,0.0003041,2]
[312350421,1705812645521,-500.0,0.0003041,2]
[312350422,1705812645531,-614.72,0.0003041,2]
[312350423,1705812645548,-500.0,0.0003041,2]
[312350425,1705812645558,-1000.0,0.0003041,2]
[312350426,1705812645568,-500.0,0.0003041,2]
[312350427,1705812645578,-500.0,0.0003041,2]
[312350428,1705812645588,-500.0,0.0003041,2]
[312350429,1705812645597,-500.0,0.0003041,2]
[312350430,1705812645607,-685.26,0.0003041,2]
[312350431,1705812645617,-500.0,0.0003041,2]
[312350432,1705812645628,-500.0,0.0003041,2]
[312350433,1705812645637,-500.0,0.0003041,2]
[312350434,1705812645646,-500.0,0.0003041,2]
[312350435,1705812645655,-500.0,0.0003041,2]
[312350436,1705812645665,-573.72,0.0003041,2]
[312350437,1705812645675,-500.0,0.0003041,2]
[312350438,1705812645686,-633.69735015,0.0003041,2]
[312350439,1705812645696,-500.0,0.0003041,2]
[312350440,1705812645706,-500.0,0.0003041,14]
[312350441,1705812645715,-712.05,0.0003041,2]
[312350443,1705812645725,-500.0,0.0003041,2]
[312350444,1705812645734,-300.0,0.0003041,2]
[312350445,1705812645744,-500.0,0.0003041,2]
[312350446,1705812645753,-501.70341618,0.0003041,2]
[312350447,1705812645764,-500.0,0.0003041,2]
[312350448,1705812645772,-500.0,0.0003041,2]
[312350450,1705812645782,-500.0,0.0003041,2]
[312350451,1705812645793,-500.0,0.0003041,2]
[312350452,1705812645803,-500.0,0.0003041,2]
[312350453,1705812645812,-200.0,0.0003041,2]
[312350454,1705812645823,-500.0,0.0003041,2]
[312350455,1705812645915,-500.0,0.0003041,2]
[312350456,1705812645933,-1364.95,0.0003041,2]
[312350457,1705812645942,-500.0,0.0003041,2]
[312350458,1705812645951,-727.28,0.0003041,2]
[312350459,1705812645961,-500.0,0.0003041,2]
[312350460,1705812645969,-151.44619477,0.0003041,2]
[312350461,1705812645978,-500.0,0.0003041,2]
[312350462,1705812645988,-679.36,0.0003041,2]
[312350463,1705812645998,-1467.11,0.0003041,2]
[312350464,1705812646007,-733.55,0.0003041,2]
[312350465,1705812646016,-500.0,0.0003041,2]
[312350466,1705812646026,-502.95,0.0003041,2]
[312350467,1705812646035,-169.7642738,0.0003041,2]
[312350468,1705812646045,-503.93060424,0.0003041,2]
[312350469,1705812646053,-500.0,0.0003041,2]
[312350470,1705812646062,-500.0,0.0003041,2]
[312350471,1705812646071,-864.54,0.0003041,2]
[312350472,1705812646080,-500.0,0.0003041,2]
[312350473,1705812646089,-500.0,0.0003041,2]
[312350474,1705812646099,-500.0,0.0003041,2]
[312350475,1705812646109,-500.0,0.0003041,2]
[312350476,1705812646118,-500.0,0.0003041,2]
[312350477,1705812646127,-500.0,0.0003041,2]
[312350478,1705812646136,-500.0,0.0003041,2]
[312350479,1705812646145,-501.49602513,0.0003041,2]
[312350480,1705812646153,-3002.90507905,0.0003041,2]
[312350581,1705813832000,-165.11503956,0.00027044,2]
[312350582,1705813832010,-154.73694719,0.00027045,2]
[312350584,1705813832019,-246.1618135,0.00027045,2]
[312350586,1705813832028,-114.55999974,0.00027046,2]
[312350636,1705813838168,-40.32935447,0.00027046,2]
[312350638,1705813838178,-154.73694719,0.00027047,4]
[312350640,1705813838187,-1811.41770485,0.00027047,2]
[312350642,1705813838196,-1589.80949829,0.00027047,2]
[312350644,1705813838206,-206.01470838,0.0002831,2]
[312350645,1705813838215,-390.73372725,0.00028627,2]
[312350646,1705813838224,-155.0,0.00029136,2]
[312350647,1705813838234,-154.73694719,0.0003,2]
[312350648,1705813838243,-688.33469937,0.00030035,4]
[312350649,1705813838252,-182.22359774,0.00030036,2]
[312350650,1705813838261,-244.52503076,0.00030126,3]
[312350651,1705813838270,-195.12427019,0.00030126,4]
[312350652,1705813838280,-172.86253631,0.00030126,4]
[312350653,1705813838290,-1140.4,0.00030126,3]
[312350654,1705813838300,-950.34,0.00030126,3]
[312350655,1705813838309,-200.11719135,0.00030134,4]
[312350656,1705813838319,-209.48915857,0.00030134,4]
[312350657,1705813838330,-1173.63022289,0.00030134,4]
[312350658,1705813838339,-745.40966274,0.00030134,4]
[312350659,1705813838350,-1054.16078813,0.00030135,17]
[312350660,1705813838360,-2823.17395231,0.00030135,4]
[312350661,1705813838369,-464.01008605,0.00030135,2]
[312350662,1705813838378,-168.75568441,0.00030135,4]
[312350663,1705813838388,-389.77,0.00030135,2]
[312350664,1705813838398,-389.77,0.00030135,2]
[312350665,1705813838407,-389.77,0.00030135,2]
[312350666,1705813838417,-389.77,0.00030135,2]
[312350667,1705813838427,-389.77,0.00030135,2]
[312350668,1705813838438,-389.77,0.00030135,2]
[312350669,1705813838447,-389.77,0.00030135,2]
[312350670,1705813838457,-389.77,0.00030135,2]
[312350671,1705813838467,-389.85,0.00030135,2]
[312350672,1705813838477,-500.0,0.00030136,2]
[312350673,1705813838486,-500.0,0.00030136,2]
[312350674,1705813838496,-500.0,0.00030136,2]
[312350675,1705813838505,-500.0,0.00030136,2]
[312350676,1705813838514,-500.0,0.00030136,2]
[312350677,1705813838524,-500.0,0.00030136,2]
[312350678,1705813838533,-347.07345658,0.00030136,2]
[312350679,1705813838542,-500.0,0.00030136,2]
[312350680,1705813838552,-410.2420927,0.00030136,2]
[312350681,1705813838561,-500.0,0.00030136,2]
[312350682,1705813838570,-500.0,0.00030136,2]
[312350683,1705813838580,-500.0,0.00030136,2]
[312350684,1705813838589,-502.7478385,0.00030136,2]
[312350685,1705813838598,-1223.75,0.00030136,2]
[312350686,1705813838607,-1000.0,0.00030136,2]
[312350687,1705813838617,-500.0,0.00030136,2]
[312350688,1705813838626,-500.0,0.00030136,2]
[312350689,1705813838636,-500.0,0.00030136,2]
[312350690,1705813838645,-500.0,0.00030136,2]
[312350691,1705813838654,-213.23258285,0.00030136,2]
[312350692,1705813838663,-505.72168151,0.00030136,2]
[312350693,1705813838672,-226.41582481,0.00030136,2]
[312350694,1705813838682,-500.0,0.00030136,2]
[312350695,1705813838691,-502.36064294,0.00030136,2]
[312350696,1705813838700,-500.0,0.00030136,2]
[312350697,1705813838711,-500.0,0.00030136,2]
[312350698,1705813838720,-500.0,0.00030136,2]
[312350699,1705813838730,-500.0,0.00030136,2]
[312350700,1705813838739,-500.0,0.00030136,2]
[312350701,1705813838748,-502.61518639,0.00030136,2]
[312350702,1705813838758,-287.06751731,0.00030136,2]
[312350703,1705813838768,-526.93855301,0.00030136,2]
[312350704,1705813838778,-530.55219774,0.00030136,2]
[312350705,1705813838787,-549.85013695,0.00030136,2]
[312350706,1705813838796,-500.0,0.00030136,2]
[312350707,1705813838806,-500.0,0.00030136,2]
[312350708,1705813838815,-500.0,0.00030136,2]
[312350709,1705813838825,-500.21508524,0.00030136,2]
[312350710,1705813838835,-533.93406896,0.00030136,2]
[312350711,1705813838844,-513.90665913,0.00030136,2]
[312350712,1705813838854,-500.0,0.00030136,2]
[312350713,1705813838864,-517.25030731,0.00030136,2]
[312350714,1705813838874,-500.0,0.00030136,2]
[312350715,1705813838883,-856.8,0.00030136,2]
[312350716,1705813838892,-500.0,0.00030136,2]
[312350717,1705813838901,-500.0,0.00030136,2]
[312350718,1705813838911,-500.0,0.00030136,2]
[312350719,1705813838923,-500.0,0.00030136,2]
[312350720,1705813838933,-500.0,0.00030136,2]
[312350721,1705813838943,-500.0,0.00030136,2]
[312350722,1705813838952,-500.0,0.00030136,2]
[312350723,1705813838962,-500.0,0.00030136,2]
[312350724,1705813838972,-500.0,0.00030136,2]
[312350725,1705813838981,-500.0,0.00030136,2]
[312350726,1705813838991,-500.0,0.00030136,2]
[312350727,1705813839000,-586.52178787,0.00030136,2]
[312350728,1705813839011,-500.0,0.00030136,2]
[312350729,1705813839021,-500.0,0.00030136,2]
[312350730,1705813839031,-500.0,0.00030136,2]
[312350731,1705813839040,-500.0,0.00030136,2]
[312350732,1705813839049,-500.0,0.00030136,2]
[312350733,1705813839058,-603.96698279,0.00030136,2]
[312350734,1705813839067,-1056.09,0.00030136,2]
[312350735,1705813839076,-500.0,0.00030136,2]
[312350736,1705813839085,-500.0,0.00030136,2]
[312350737,1705813839095,-500.0,0.00030136,2]
[312350738,1705813839105,-500.0,0.00030136,2]
[312350739,1705813839116,-500.0,0.00030136,2]
[312350740,1705813839125,-500.0,0.00030136,2]
[312350741,1705813839135,-500.0,0.00030136,2]
[312350742,1705813839144,-1168.82,0.00030136,2]
[312350743,1705813839154,-500.0,0.00030136,2]
[312350744,1705813839163,-500.0,0.00030136,2]
[312350745,1705813839173,-500.0,0.00030136,2]
[312350746,1705813839182,-405.9717205,0.00030136,2]
[312350747,1705813839191,-500.0,0.00030136,2]
[312350748,1705813839200,-500.0,0.00030136,2]
[312350749,1705813839209,-500.0,0.00030136,2]
[312350750,1705813839220,-385.076978,0.00030136,2]
[312350751,1705813839230,-500.0,0.00030136,2]
[312350752,1705813839239,-500.0,0.00030136,2]
[312350753,1705813839249,-500.0,0.00030136,2]
[312350754,1705813839260,-500.0,0.00030136,2]
[312350755,1705813839270,-500.0,0.00030136,2]
[312350756,1705813839280,-801.66,0.00030136,2]
[312350757,1705813839289,-500.0,0.00030136,2]
[312350758,1705813839299,-500.0,0.00030136,2]
[312350759,1705813839308,-500.0,0.00030136,2]
[312350760,1705813839318,-501.24,0.00030136,2]
[312350761,1705813839327,-500.0,0.00030136,2]
[312350762,1705813839337,-615.83,0.00030136,2]
[312350763,1705813839346,-500.0,0.00030136,2]
[312350764,1705813839355,-500.0,0.00030136,2]
[312350765,1705813839364,-1000.0,0.00030136,2]
[312350766,1705813839373,-500.0,0.00030136,2]
[312350767,1705813839382,-500.0,0.00030136,2]
[312350768,1705813839391,-500.0,0.00030136,2]
[312350769,1705813839401,-500.0,0.00030136,2]
[312350770,1705813839410,-500.0,0.00030136,2]
[312350771,1705813839419,-500.0,0.00030136,2]
[312350772,1705813839428,-500.0,0.00030136,2]
[312350773,1705813839437,-500.0,0.00030136,2]
[312350774,1705813839446,-500.0,0.00030136,2]
[312350775,1705813839455,-500.0,0.00030136,2]
[312350776,1705813839465,-500.0,0.00030136,2]
[312350777,1705813839475,-415.2839802,0.00030136,2]
[312350778,1705813839484,-500.0,0.00030136,2]
[312350779,1705813839494,-686.5,0.00030136,2]
[312350780,1705813839504,-500.0,0.00030136,2]
[312350781,1705813839515,-500.0,0.00030136,2]
[312350782,1705813839524,-500.0,0.00030136,2]
[312350783,1705813839533,-574.75,0.00030136,2]
[312350784,1705813839543,-682.38,0.00030136,2]
[312350785,1705813839552,-501.60003546,0.00030136,2]
[312350786,1705813839562,-355.94147044,0.00030136,2]
[312350787,1705813839572,-500.0,0.00030136,2]
[312350788,1705813839582,-500.0,0.00030136,2]
[312350789,1705813839590,-500.0,0.00030136,2]
[312350790,1705813839600,-500.0,0.00030136,2]
[312350791,1705813839609,-500.0,0.00030136,14]
[312350792,1705813839619,-500.0,0.00030136,2]
[312350793,1705813839628,-500.0,0.00030136,2]
[312350794,1705813839638,-500.0,0.00030136,2]
[312350795,1705813839648,-500.0,0.00030136,2]
[312350796,1705813839658,-300.0,0.00030136,2]
[312350797,1705813839667,-727.22,0.00030136,2]
[312350798,1705813839677,-500.0,0.00030136,2]
[312350799,1705813839687,-500.0,0.00030136,2]
[312350800,1705813839698,-501.25494433,0.00030136,2]
[312350801,1705813839709,-169.7642738,0.00030136,2]
[312350802,1705813839718,-500.0,0.00030136,2]
[312350803,1705813839729,-500.0,0.00030136,2]
[312350804,1705813839739,-500.0,0.00030136,2]
[312350805,1705813839750,-200.0,0.00030136,2]
[312350806,1705813839759,-500.4458244,0.00030136,2]
[312350807,1705813839768,-500.0,0.00030136,2]
[312350808,1705813839780,-500.0,0.00030136,2]
[312350809,1705813839790,-500.0,0.00030136,2]
[312350810,1705813839800,-500.0,0.00030136,2]
[312350811,1705813839809,-679.37,0.00030136,2]
[312350812,1705813839819,-502.95,0.00030136,2]
[312350813,1705813839828,-500.0,0.00030136,2]
[312350814,1705813839837,-500.0,0.00030136,2]
[312350815,1705813839846,-503.59642342,0.00030136,2]
[312350816,1705813839855,-305.5028766,0.00030136,2]
[312350817,1705813839864,-500.0,0.00030136,2]
[312350818,1705813839873,-521.20690982,0.00030136,2]
[312350819,1705813839882,-500.0,0.00030136,2]
[312350820,1705813839892,-500.0,0.00030136,2]
[312350821,1705813839901,-500.0,0.00030136,2]
[312350822,1705813839911,-500.39554514,0.00030136,2]
[312350823,1705813839922,-500.0,0.00030136,2]
[312350824,1705813839934,-500.0,0.00030136,2]
[312350825,1705813839943,-1000.0,0.00030136,2]
[312350826,1705813839953,-500.0,0.00030136,2]
[312350827,1705813839962,-500.0,0.00030136,2]
[312350828,1705813839973,-326.09246746,0.00030136,2]
[312350829,1705813839983,-500.0,0.00030136,2]
[312350830,1705813839993,-555.8140648,0.00030136,2]
[312350831,1705813840003,-502.80210188,0.00030136,2]
[312350832,1705813840015,-501.49584518,0.00030136,2]
[312350833,1705813840025,-500.0,0.00030136,2]
[312350834,1705813840034,-500.0,0.00030136,2]
[312350835,1705813840043,-500.0,0.00030136,2]
[312350836,1705813840052,-500.0,0.00030136,2]
[312350837,1705813840062,-500.0,0.00030136,2]
[312350838,1705813840070,-1094.79,0.00030136,2]
[312350839,1705813840080,-285.52354542,0.00030136,2]
[312350840,1705813840089,-500.0,0.00030136,2]
[312350841,1705813840098,-500.0,0.00030136,2]
[312350842,1705813840107,-500.0,0.00030136,2]
[312350843,1705813840116,-500.0,0.00030136,2]
[312350844,1705813840125,-500.0,0.00030136,2]
[312350845,1705813840134,-500.0,0.00030136,2]
[312350846,1705813840143,-500.0,0.00030136,2]
[312350847,1705813840152,-680.22,0.00030136,2]